fUSD/lending_fUSD_20260630
["ID","MTS","AMOUNT","RATE_DAILY","PERIOD"]
[426746742,1782777087000,-151.0,0.00035616,30]
[426746740,1782777087000,-192.792091,0.00035616,30]
[426746738,1782777087000,-151.0,0.00035616,30]
[426746743,1782777087000,-206.676237,0.00035616,30]
[426746745,1782777087000,-183.82229,0.00035616,30]
[426746746,1782777087000,-206.676237,0.00035616,30]
[426746747,1782777087000,-192.792091,0.00035616,30]
[426746749,1782777087000,-198.94344,0.00035616,30]
[426746751,1782777087000,-192.792091,0.00035616,30]
[426746754,1782777087000,-192.792091,0.00035616,30]
[426746753,1782777087000,-206.676237,0.00035616,30]
[426746748,1782777087000,-183.82229,0.00035616,30]
[426746750,1782777087000,-151.0,0.00035616,30]
[426746744,1782777087000,-192.792091,0.00035616,30]
[426746752,1782777087000,-183.82229,0.00035616,30]
[426746756,1782777087000,-192.792091,0.00035616,30]
[426746767,1782777087000,-178.020111,0.00035616,30]
[426746757,1782777087000,-206.676237,0.00035616,30]
[426746759,1782777087000,-206.676237,0.00035616,30]
[426746791,1782777087000,-288.199571,0.00035616,30]
[426746755,1782777087000,-206.676237,0.00035616,30]
[426746766,1782777087000,-151.0,0.00035616,30]
[426746758,1782777087000,-192.792091,0.00035616,30]
[426746761,1782777087000,-151.0,0.00035616,30]
[426746762,1782777087000,-151.0,0.00035616,30]
[426746765,1782777087000,-151.0,0.00035616,30]
[426746763,1782777087000,-151.0,0.00035616,30]
[426746798,1782777087000,-151.0,0.00035616,30]
[426746836,1782777087000,-151.0,0.00035616,30]
[426746797,1782777087000,-289.000199,0.00035616,30]
[426746839,1782777087000,-245.38792,0.00035616,30]
[426746835,1782777087000,-151.0,0.00035616,30]
[426746834,1782777087000,-245.38792,0.00035616,30]
[426746829,1782777087000,-245.38792,0.00035616,30]
[426746837,1782777087000,-245.38792,0.00035616,30]
[426746830,1782777087000,-151.0,0.00035616,30]
[426746831,1782777087000,-151.0,0.00035616,30]
[426746833,1782777087000,-160.92933,0.00035616,30]
[426746832,1782777087000,-245.38792,0.00035616,30]
[426746840,1782777087000,-245.38792,0.00035616,30]
[426746843,1782777087000,-151.0,0.00035616,30]
[426746847,1782777087000,-218.98614,0.00035616,30]
[426746827,1782777087000,-151.0,0.00035616,30]
[426746845,1782777087000,-218.98614,0.00035616,30]
[426746841,1782777087000,-151.0,0.00035616,30]
[426746842,1782777087000,-245.38792,0.00035616,30]
[426746850,1782777087000,-245.38792,0.00035616,30]
[426746848,1782777087000,-245.38792,0.00035616,30]
[426746849,1782777087000,-218.98614,0.00035616,30]
[426746852,1782777087000,-245.38792,0.00035616,30]
[426746851,1782777087000,-218.98614,0.00035616,30]
[426746854,1782777087000,-245.38792,0.00035616,30]
[426746853,1782777087000,-218.98614,0.00035616,30]
[426746855,1782777087000,-218.98614,0.00035616,30]
[426746856,1782777087000,-245.38792,0.00035616,30]
[426746801,1782777087000,-158.56,0.00035616,30]
[426746846,1782777087000,-245.38792,0.00035616,30]
[426746838,1782777087000,-151.0,0.00035616,30]
[426746844,1782777087000,-191.939616,0.00035616,30]
[426746825,1782777087000,-151.0,0.00035616,30]
[426746796,1782777087000,-151.0,0.00035616,30]
[426746828,1782777087000,-245.38792,0.00035616,30]
[426746800,1782777087000,-151.0,0.00035616,30]
[426746799,1782777087000,-158.56,0.00035616,30]
[426746803,1782777087000,-158.56,0.00035616,30]
[426746813,1782777087000,-151.0,0.00035616,30]
[426746806,1782777087000,-151.0,0.00035616,30]
[426746807,1782777087000,-158.56,0.00035616,30]
[426746805,1782777087000,-158.56,0.00035616,30]
[426746802,1782777087000,-151.0,0.00035616,30]
[426746808,1782777087000,-151.0,0.00035616,30]
[426746809,1782777087000,-158.56,0.00035616,30]
[426746810,1782777087000,-151.0,0.00035616,30]
[426746804,1782777087000,-151.0,0.00035616,30]
[426746816,1782777087000,-158.56,0.00035616,30]
[426746822,1782777087000,-151.0,0.00035616,30]
[426746812,1782777087000,-158.56,0.00035616,30]
[426746824,1782777087000,-151.0,0.00035616,30]
[426746823,1782777087000,-151.0,0.00035616,30]
[426746817,1782777087000,-151.0,0.00035616,30]
[426746820,1782777087000,-151.0,0.00035616,30]
[426746826,1782777087000,-181.700672,0.00035616,30]
[426746819,1782777087000,-151.0,0.00035616,30]
[426746818,1782777087000,-158.56,0.00035616,30]
[426746821,1782777087000,-151.0,0.00035616,30]
[426746814,1782777087000,-151.0,0.00035616,30]
[426746811,1782777087000,-158.56,0.00035616,30]
[426746815,1782777087000,-158.56,0.00035616,30]
[426746886,1782777088000,-2795.7,0.00035616,30]
[426746879,1782777088000,-404.565709,0.00035616,30]
[426746876,1782777088000,-404.565709,0.00035616,30]
[426746887,1782777088000,-404.565709,0.00035616,30]
[426746875,1782777088000,-151.0,0.00035616,30]
[426746877,1782777088000,-151.0,0.00035616,30]
[426746885,1782777088000,-151.0,0.00035616,30]
[426746884,1782777088000,-151.0,0.00035616,30]
[426746881,1782777088000,-2795.7,0.00035616,30]
[426746882,1782777088000,-404.565709,0.00035616,30]
[426746883,1782777088000,-404.565709,0.00035616,30]
[426746880,1782777088000,-151.0,0.00035616,30]
[426746865,1782777088000,-218.98614,0.00035616,30]
[426746878,1782777088000,-2795.7,0.00035616,30]
[426746870,1782777088000,-404.565709,0.00035616,30]
[426746857,1782777088000,-218.98614,0.00035616,30]
[426746866,1782777088000,-218.98614,0.00035616,30]
[426746888,1782777088000,-172.476414,0.00035616,30]
[426746859,1782777088000,-245.38792,0.00035616,30]
[426746858,1782777088000,-245.38792,0.00035616,30]
[426746861,1782777088000,-218.98614,0.00035616,30]
[426746860,1782777088000,-218.98614,0.00035616,30]
[426746862,1782777088000,-218.98614,0.00035616,30]
[426746872,1782777088000,-404.565709,0.00035616,30]
[426746863,1782777088000,-218.98614,0.00035616,30]
[426746867,1782777088000,-218.98614,0.00035616,30]
[426746874,1782777088000,-2795.7,0.00035616,30]
[426746871,1782777088000,-404.565709,0.00035616,30]
[426746869,1782777088000,-404.565709,0.00035616,30]
[426746873,1782777088000,-151.0,0.00035616,30]
[426746868,1782777088000,-218.98614,0.00035616,30]
[426746864,1782777088000,-218.98614,0.00035616,30]
[426746890,1782777088000,-404.565709,0.00035616,30]
[426746917,1782777088000,-332.810245,0.00035616,30]
[426746897,1782777088000,-332.810245,0.00035616,30]
[426746904,1782777088000,-332.810245,0.00035616,30]
[426746909,1782777088000,-332.810245,0.00035616,30]
[426746906,1782777088000,-332.810245,0.00035616,30]
[426746910,1782777088000,-2795.7,0.00035616,30]
[426746914,1782777088000,-332.810245,0.00035616,30]
[426746915,1782777088000,-4906.35175501,0.00035616,30]
[426746891,1782777088000,-2795.7,0.00035616,30]
[426746916,1782777088000,-865.68998399,0.00035616,30]
[426746920,1782777088000,-935.817238,0.00035616,7]
[426746923,1782777088000,-2110.9393789,0.00035616,30]
[426746921,1782777088000,-13.08097274,0.00035616,30]
[426746922,1782777088000,-1407.386811,0.00035616,30]
[426746919,1782777088000,-576.89697117,0.00035616,30]
[426746924,1782777088000,-0.00395906,0.00035616,30]
[426746918,1782777088000,-3774.67698409,0.00035616,30]
[426746907,1782777088000,-2795.7,0.00035616,30]
[426746905,1782777088000,-2795.7,0.00035616,30]
[426746908,1782777088000,-5772.041739,0.00035616,30]
[426746894,1782777088000,-332.810245,0.00035616,30]
[426746893,1782777088000,-404.565709,0.00035616,30]
[426746895,1782777088000,-2795.7,0.00035616,30]
[426746901,1782777088000,-2795.7,0.00035616,30]
[426746889,1782777088000,-2795.7,0.00035616,30]
[426746912,1782777088000,-5772.041739,0.00035616,30]
[426746899,1782777088000,-404.565709,0.00035616,30]
[426746892,1782777088000,-404.565709,0.00035616,30]
[426746898,1782777088000,-2795.7,0.00035616,30]
[426746900,1782777088000,-332.810245,0.00035616,30]
[426746903,1782777088000,-404.565709,0.00035616,30]
[426746913,1782777088000,-332.810245,0.00035616,30]
[426746902,1782777088000,-404.565709,0.00035616,30]
[426746911,1782777088000,-5772.041739,0.00035616,30]
[426746896,1782777088000,-404.565709,0.00035616,30]
[426746926,1782777089000,-254.896815,0.00035616,30]
[426746925,1782777089000,-1118.71044298,0.00035616,30]
[426746928,1782777089000,-332.810245,0.00035616,30]
[426746927,1782777089000,-2287.49114306,0.00035616,30]
[426746931,1782777089000,-5772.041739,0.00035616,30]
[426746930,1782777089000,-332.810245,0.00035616,30]
[426746934,1782777089000,-110.95045106,0.00013698,2]
[426746929,1782777089000,-332.810245,0.00035616,30]
[426746932,1782777089000,-5772.041739,0.00035616,30]
[426746933,1782777089000,-3087.18362763,0.00035616,30]
[426746956,1782777090000,-197.83191638,0.00013698,2]
[426746935,1782777090000,-389.04954894,0.00013698,2]
[426746936,1782777090000,-500.0,0.00013698,2]
[426746937,1782777090000,-232.0,0.00023,2]
[426746938,1782777090000,-232.0,0.00024,2]
[426746939,1782777090000,-935.817238,0.0003,7]
[426746941,1782777090000,-300.0,0.00033516,2]
[426746940,1782777090000,-935.817238,0.0003,7]
[426746955,1782777090000,-500.0,0.00013698,2]
[426746942,1782777090000,-300.0,0.00033516,2]
[426746943,1782777090000,-935.817238,0.0003367,7]
[426746947,1782777090000,-2684.85811137,0.00035616,30]
[426746945,1782777090000,-935.817238,0.000355,7]
[426746948,1782777090000,-225.14891169,0.00035616,30]
[426746950,1782777090000,-500.0,0.00013698,2]
[426746949,1782777090000,-500.0,0.00013698,2]
[426746953,1782777090000,-381.1819163,0.00013698,2]
[426746952,1782777090000,-278.64800181,0.00013698,2]
[426746951,1782777090000,-221.35199819,0.00013698,2]
[426746954,1782777090000,-118.8180837,0.00013698,2]
[426746946,1782777090000,-935.817238,0.00035616,7]
[426746944,1782777090000,-935.817238,0.00035245,7]
[426746958,1782777104000,-201.5,0.00012407,2]
[426746957,1782777104000,-298.5,0.00012404,2]
[426746960,1782777153000,-150.0,0.00012409,2]
[426746961,1782777174000,150.0,0.000123,7]
[426746962,1782777174000,150.0,0.00012546,7]
[426746963,1782777175000,150.0,0.00012915,7]
[426746964,1782777206000,-500.0,0.00012253,2]
[426746965,1782777238000,1131.34001778,0.00012299,3]
[426746966,1782777259000,-2582.911,0.00012054,2]
[426746967,1782777294000,186.80072701,0.00012208,7]
[426746968,1782777295000,186.80072701,0.00012452,7]
[426746969,1782777296000,186.80072701,0.00012818,7]
[426746970,1782777313000,-154.299,0.00012054,2]
[426746971,1782777330000,300.0,0.000118,4]
[426746972,1782777332000,600.0,0.000119,4]
[426746974,1782777355000,150.0,0.00012546,7]
[426746973,1782777355000,150.0,0.000123,7]
[426746975,1782777366000,-288.47225576,0.00012209,2]
[426746976,1782777366000,150.0,0.00012915,7]
[426746982,1782777474000,6700.47855578,0.00012209,7]
[426746983,1782777475000,6700.47855578,0.00012453,7]
[426746985,1782777475000,150.0,0.00012546,7]
[426746984,1782777475000,150.0,0.000123,7]
[426746987,1782777476000,150.0,0.00012915,7]
[426746986,1782777476000,6700.47855578,0.00012819,7]
[426746988,1782777477000,421.22678031,0.00012209,7]
[426746989,1782777478000,421.22678031,0.00012453,7]
[426746990,1782777479000,421.22678031,0.00012819,7]
[426746991,1782777482000,150.0,0.00011838,2]
[426746992,1782777551000,1136.45,0.00011683,2]
[426746993,1782777626000,485.99,0.00012,2]
[426746996,1782777675000,7021.97,0.00011515,2]
[426747000,1782777742000,-150.0,0.00012054,2]
[426747004,1782777769000,-250.0,0.00012054,2]
[426747005,1782777769000,-1418.42,0.00012054,2]
[426747006,1782777795000,-214.57085644,0.00012054,2]
[426747007,1782777803000,1169.46,0.00011556,2]
[426747008,1782777848000,-500.0,0.00012053,2]
[426747009,1782777902000,-299.38504484,0.00012052,2]
[426747010,1782777923000,172.5634078,0.00011952,2]
[426747011,1782777956000,-500.0,0.00012052,2]
[426747012,1782777960000,165.81,0.00011661,2]
[426747013,1782777997000,7462.46058158,0.00012,2]
[426747014,1782778009000,-150.0,0.00012051,2]
[426747015,1782778012000,200.0,0.00011673,2]
[426747016,1782778041000,400.0,0.000117,4]
[426747017,1782778043000,800.0,0.000118,4]
[426747018,1782778046000,1300.0,0.000119,4]
[426747019,1782778062000,-150.0,0.00012051,2]
[426747020,1782778070000,181.46,0.00011552,2]
[426747023,1782778096000,1100.0,0.00011507,2]
[426747021,1782778096000,319098.85679452,0.00011507,2]
[426747022,1782778096000,53147.53585687,0.00011507,2]
[426747024,1782778115000,-5581.59781643,0.00011507,2]
[426747026,1782778115000,-250.0,0.00012051,2]
[426747025,1782778115000,-3655.80953218,0.00011507,2]
[426747027,1782778128000,-500.0,0.00012054,2]
[426747029,1782778129000,500.0,0.0001205,2]
[426747036,1782778129000,90.64466402,0.0001205,2]
[426747033,1782778129000,175.03724759,0.0001205,2]
[426747034,1782778129000,216.57148937,0.0001205,2]
[426747035,1782778129000,500.0,0.0001205,2]
[426747031,1782778129000,500.0,0.0001205,2]
[426747032,1782778129000,500.0,0.0001205,2]
[426747030,1782778129000,500.0,0.0001205,2]
[426747028,1782778129000,429.02706684,0.0001205,2]
[426747041,1782778151000,-500.0,0.00011506,2]
[426747043,1782778151000,-500.0,0.00011506,2]
[426747039,1782778151000,-267.17955546,0.00011494,2]
[426747038,1782778151000,-851.78,0.00011484,2]
[426747040,1782778151000,-150.0,0.00011505,2]
[426747042,1782778151000,-618.65,0.00011506,2]
[426747047,1782778151000,-500.0,0.00011506,2]
[426747046,1782778151000,-463.42835924,0.00011506,2]
[426747045,1782778151000,-36.57164076,0.00011506,2]
[426747048,1782778151000,-500.0,0.00011506,2]
[426747049,1782778151000,-500.0,0.00011506,2]
[426747050,1782778151000,-500.0,0.00011506,2]
[426747051,1782778151000,-500.0,0.00011506,2]
[426747044,1782778151000,-500.0,0.00011506,2]
[426747057,1782778152000,-395.69303346,0.00011506,2]
[426747056,1782778152000,-500.0,0.00011506,2]
[426747054,1782778152000,-500.0,0.00011506,2]
[426747055,1782778152000,-500.0,0.00011506,2]
[426747053,1782778152000,-39.24716302,0.00011506,2]
[426747052,1782778152000,-460.75283698,0.00011506,2]
[426747060,1782778181000,-104.30696654,0.00011506,2]
[426747062,1782778181000,-500.0,0.00011506,2]
[426747063,1782778181000,-500.0,0.00011506,2]
[426747061,1782778181000,-446.56832647,0.00011506,2]
[426747073,1782778182000,-500.0,0.00011506,2]
[426747064,1782778182000,-500.0,0.00011506,2]
[426747065,1782778182000,-500.0,0.00011506,2]
[426747066,1782778182000,-500.0,0.00011506,2]
[426747067,1782778182000,-500.0,0.00011506,2]
[426747070,1782778182000,-500.0,0.00011506,2]
[426747069,1782778182000,-500.0,0.00011506,2]
[426747068,1782778182000,-500.0,0.00011506,2]
[426747071,1782778182000,-463.05352753,0.00011506,2]
[426747072,1782778182000,-36.94647247,0.00011506,2]
[426747074,1782778182000,-500.0,0.00011506,2]
[426747081,1782778182000,-500.0,0.00011506,2]
[426747075,1782778182000,-500.0,0.00011506,2]
[426747085,1782778182000,-500.0,0.00011506,2]
[426747086,1782778182000,-500.0,0.00011506,2]
[426747084,1782778182000,-500.0,0.00011506,2]
[426747083,1782778182000,-500.0,0.00011506,2]
[426747082,1782778182000,-500.0,0.00011506,2]
[426747076,1782778182000,-500.0,0.00011506,2]
[426747080,1782778182000,-500.0,0.00011506,2]
[426747077,1782778182000,-500.0,0.00011506,2]
[426747087,1782778182000,-287.70792153,0.00011506,2]
[426747078,1782778182000,-500.0,0.00011506,2]
[426747079,1782778182000,-500.0,0.00011506,2]
[426747088,1782778183000,500.0,0.00011506,2]
[426747089,1782778183000,153.0088017,0.00011506,2]
[426747092,1782778200000,-369.69960493,0.00012054,2]
[426747093,1782778200000,-1689.45699512,0.00012054,2]
[426747091,1782778200000,-1617.55469369,0.0001205,2]
[426747090,1782778200000,-1625.65312541,0.0001205,2]
[426747095,1782778208000,166.66,0.00011201,2]
[426747094,1782778208000,166.66,0.0001097,2]
[426747096,1782778209000,166.66,0.00011432,2]
[426747105,1782778231000,-979.9223236,0.00012199,2]
[426747106,1782778231000,-396.64464097,0.00012199,2]
[426747102,1782778231000,-166.66,0.00012125,2]
[426747107,1782778231000,-683.14796332,0.00012199,2]
[426747104,1782778231000,-85.15177749,0.00012199,2]
[426747101,1782778231000,-204.0,0.00012119,2]
[426747108,1782778231000,-304.0,0.00012199,2]
[426747100,1782778231000,-580.57379718,0.00012114,2]
[426747098,1782778231000,-166.66,0.00011894,2]
[426747097,1782778231000,-166.66,0.00011663,2]
[426747110,1782778231000,-152.0,0.00012199,2]
[426747103,1782778231000,-2066.329,0.00012199,2]
[426747111,1782778231000,-292.9134716,0.000122,2]
[426747099,1782778231000,-457.33897069,0.00012054,2]
[426747109,1782778231000,-19138.13236903,0.00012199,2]
[426747112,1782778231000,-36837.5831589,0.000122,2]
[426747126,1782778231000,-1634.1442,0.000123,2]
[426747119,1782778231000,-855.90262484,0.0001229,2]
[426747130,1782778231000,-1892.63152663,0.000123,2]
[426747120,1782778231000,-30250.53848582,0.000123,2]
[426747128,1782778231000,-41865.83822736,0.000123,2]
[426747123,1782778231000,-49748.64359177,0.000123,2]
[426747114,1782778231000,-3642.29170182,0.00012208,2]
[426747117,1782778231000,-179.68497723,0.00012239,2]
[426747113,1782778231000,-1182.8965222,0.00012208,2]
[426747116,1782778231000,-179.68497724,0.00012239,2]
[426747115,1782778231000,-168.49983,0.00012209,2]
[426747118,1782778231000,-204.0,0.00012239,2]
[426747121,1782778231000,-15010.01825947,0.000123,2]
[426747164,1782778237000,-3394.74064358,0.000123,2]
[426747210,1782778239000,-5549.65816268,0.000123,2]
[426747211,1782778240000,-165.81,0.00012308,2]
[426747214,1782778240000,-179.68497724,0.00012348,2]
[426747213,1782778240000,-233.5925167,0.00012345,2]
[426747212,1782778240000,-1618.8274833,0.00012345,2]
[426747216,1782778240000,-4964.32032249,0.00012383,2]
[426747215,1782778240000,-204.0,0.00012359,2]
[426747254,1782778241000,-383.99075016,0.00013259,2]
[426747249,1782778241000,-6700.47855578,0.00013186,7]
[426747248,1782778241000,-186.80072701,0.00013185,7]
[426747250,1782778241000,-421.22678031,0.00013186,7]
[426747244,1782778241000,-292.91347156,0.000131,2]
[426747251,1782778241000,-204.0,0.00013199,2]
[426747253,1782778241000,-150.14924506,0.00013256,2]
[426747255,1782778241000,-500.0,0.00013259,2]
[426747252,1782778241000,-250.0,0.00013256,2]
[426747260,1782778241000,-150.0,0.00013284,7]
[426747258,1782778241000,-150.0,0.00013284,7]
[426747261,1782778241000,-500.0,0.0001329,2]
[426747256,1782778241000,-300.0,0.00013259,2]
[426747271,1782778241000,-150.0,0.00013488,2]
[426747259,1782778241000,-150.0,0.00013284,7]
[426747263,1782778241000,-36837.58315886,0.000134,2]
[426747273,1782778241000,-150.0,0.00013488,2]
[426747262,1782778241000,-5582.0,0.00013397,2]
[426747264,1782778241000,-500.0,0.00013409,2]
[426747272,1782778241000,-150.0,0.00013488,2]
[426747267,1782778241000,-163.071038,0.00013426,2]
[426747270,1782778241000,-150.0,0.00013488,2]
[426747268,1782778241000,-150.0,0.00013488,2]
[426747266,1782778241000,-229.9,0.00013423,2]
[426747265,1782778241000,-3454.38,0.00013423,2]
[426747247,1782778241000,-166.66,0.00013135,2]
[426747257,1782778241000,-861.54,0.00013284,2]
[426747241,1782778241000,-5436.74336436,0.0001305,2]
[426747217,1782778241000,-2386.93524509,0.00012383,2]
[426747243,1782778241000,-43296.85817157,0.000131,2]
[426747269,1782778241000,-150.0,0.00013488,2]
[426747218,1782778241000,-50322.73112671,0.00012383,2]
[426747220,1782778241000,-130233.0672252,0.0001241,2]
[426747219,1782778241000,-274.49461719,0.00012409,2]
[426747221,1782778241000,-209.96816458,0.0001241,2]
[426747226,1782778241000,-160.0,0.00012594,2]
[426747223,1782778241000,-204.0,0.00012479,2]
[426747222,1782778241000,-4570.81,0.00012438,2]
[426747224,1782778241000,-36837.58315886,0.000125,2]
[426747225,1782778241000,-255.0,0.00012563,2]
[426747227,1782778241000,-204.0,0.00012599,2]
[426747238,1782778241000,-276.61,0.00012877,2]
[426747246,1782778241000,-500.0,0.00013135,2]
[426747228,1782778241000,-216.58458871,0.00012605,2]
[426747230,1782778241000,-193.0,0.00012632,2]
[426747237,1782778241000,-204.0,0.00012839,2]
[426747234,1782778241000,-204.0,0.00012719,2]
[426747236,1782778241000,-36837.58315886,0.000128,2]
[426747229,1782778241000,-160.0,0.00012605,2]
[426747231,1782778241000,-250.0,0.00012632,2]
[426747232,1782778241000,-292.91347156,0.0001265,2]
[426747233,1782778241000,-166.66,0.00012716,2]
[426747240,1782778241000,-204.0,0.00012959,2]
[426747239,1782778241000,-165.81,0.00012956,2]
[426747245,1782778241000,-36837.58315886,0.000131,2]
[426747242,1782778241000,-204.0,0.00013079,2]
[426747235,1782778241000,-2685.14711797,0.0001278,2]
[426747276,1782778241000,-150.0,0.00013488,2]
[426747274,1782778241000,-150.0,0.00013488,2]
[426747279,1782778241000,-150.0,0.00013538,2]
[426747301,1782778241000,-150.0,0.00013691,2]
[426747304,1782778241000,-645.65,0.00013698,2]
[426747308,1782778241000,-645.65,0.00013698,2]
[426747307,1782778241000,-645.65,0.00013698,2]
[426747314,1782778241000,-820.01,0.00013698,2]
[426747325,1782778241000,-500.0,0.00013698,2]
[426747324,1782778241000,-500.0,0.00013698,2]
[426747321,1782778241000,-500.0,0.00013698,2]
[426747313,1782778241000,-820.01,0.00013698,2]
[426747320,1782778241000,-500.0,0.00013698,2]
[426747315,1782778241000,-820.01,0.00013698,2]
[426747317,1782778241000,-820.01,0.00013698,2]
[426747316,1782778241000,-820.01,0.00013698,2]
[426747319,1782778241000,-500.0,0.00013698,2]
[426747318,1782778241000,-500.0,0.00013698,2]
[426747323,1782778241000,-500.0,0.00013698,2]
[426747326,1782778241000,-500.0,0.00013698,2]
[426747329,1782778241000,-500.0,0.00013698,2]
[426747330,1782778241000,-500.0,0.00013698,2]
[426747328,1782778241000,-500.0,0.00013698,2]
[426747334,1782778241000,-500.0,0.00013698,2]
[426747327,1782778241000,-500.0,0.00013698,2]
[426747332,1782778241000,-500.0,0.00013698,2]
[426747333,1782778241000,-500.0,0.00013698,2]
[426747335,1782778241000,-500.0,0.00013698,2]
[426747331,1782778241000,-500.0,0.00013698,2]
[426747278,1782778241000,-150.0,0.00013513,2]
[426747305,1782778241000,-645.65,0.00013698,2]
[426747311,1782778241000,-820.01,0.00013698,2]
[426747322,1782778241000,-500.0,0.00013698,2]
[426747310,1782778241000,-820.01,0.00013698,2]
[426747309,1782778241000,-645.65,0.00013698,2]
[426747280,1782778241000,-292.91347156,0.0001355,2]
[426747275,1782778241000,-150.0,0.00013488,2]
[426747277,1782778241000,-150.0,0.00013488,2]
[426747281,1782778241000,-1182.89652219,0.00013554,2]
[426747285,1782778241000,-150.0,0.00013581,2]
[426747286,1782778241000,-150.0,0.00013588,2]
[426747283,1782778241000,-150.0,0.00013559,2]
[426747284,1782778241000,-150.0,0.00013564,2]
[426747287,1782778241000,-150.0,0.00013589,2]
[426747299,1782778241000,-500.0,0.00013683,2]
[426747288,1782778241000,-165.81,0.00013604,2]
[426747296,1782778241000,-6700.4785558,0.00013674,7]
[426747290,1782778241000,-150.0,0.00013624,2]
[426747282,1782778241000,-166.66,0.00013555,2]
[426747312,1782778241000,-820.01,0.00013698,2]
[426747298,1782778241000,-150.0,0.00013675,2]
[426747291,1782778241000,-150.0,0.0001363,2]
[426747293,1782778241000,-150.0,0.0001364,2]
[426747294,1782778241000,-150.0,0.00013665,2]
[426747295,1782778241000,-186.80072702,0.00013673,7]
[426747292,1782778241000,-150.0,0.00013638,2]
[426747297,1782778241000,-421.22678033,0.00013674,7]
[426747300,1782778241000,-150.0,0.00013687,2]
[426747289,1782778241000,-150.0,0.00013615,2]
[426747303,1782778241000,-645.65,0.00013698,2]
[426747302,1782778241000,-645.65,0.00013698,2]
[426747306,1782778241000,-645.65,0.00013698,2]
[426747377,1782778242000,-294.12807726,0.00013698,2]
[426747387,1782778242000,-500.0,0.00013698,2]
[426747374,1782778242000,-518.16800403,0.00013698,2]
[426747382,1782778242000,-500.0,0.00013698,2]
[426747380,1782778242000,-500.0,0.00013698,2]
[426747369,1782778242000,-500.0,0.00013698,2]
[426747375,1782778242000,-500.0,0.00013698,2]
[426747371,1782778242000,-500.0,0.00013698,2]
[426747372,1782778242000,-500.0,0.00013698,2]
[426747368,1782778242000,-500.0,0.00013698,2]
[426747370,1782778242000,-500.0,0.00013698,2]
[426747381,1782778242000,-500.0,0.00013698,2]
[426747367,1782778242000,-500.0,0.00013698,2]
[426747386,1782778242000,-500.0,0.00013698,2]
[426747400,1782778242000,-534.63292639,0.00013698,2]
[426747376,1782778242000,-500.0,0.00013698,2]
[426747383,1782778242000,-500.0,0.00013698,2]
[426747379,1782778242000,-500.0,0.00013698,2]
[426747378,1782778242000,-500.0,0.00013698,2]
[426747384,1782778242000,-500.0,0.00013698,2]
[426747401,1782778242000,-500.0,0.00013698,2]
[426747389,1782778242000,-500.0,0.00013698,2]
[426747391,1782778242000,-500.0,0.00013698,2]
[426747394,1782778242000,-500.0,0.00013698,2]
[426747398,1782778242000,-500.0,0.00013698,2]
[426747392,1782778242000,-500.0,0.00013698,2]
[426747395,1782778242000,-500.0,0.00013698,2]
[426747385,1782778242000,-581.73724219,0.00013698,2]
[426747366,1782778242000,-424.12596773,0.00013698,2]
[426747337,1782778242000,-500.0,0.00013698,2]
[426747365,1782778242000,-500.0,0.00013698,2]
[426747393,1782778242000,-500.0,0.00013698,2]
[426747339,1782778242000,-500.0,0.00013698,2]